Cogmind - Beta 9.2 @@@ ROGUE MODE // 2019.11.27 @ 15:10:08 Player: Cassie Rose Result: Destroyed by Y-45 Defender with Beam Rifle Performance ------------- Evolutions (1) 500 Regions Visited (2) 400 Robots Destroyed (61) 305 Value Destroyed (1074) 1074 Prototype IDs (6) 120 Alien Tech Used (0) 0 Bonus (0) 0 TOTAL SCORE: 2399 Bonus ------- None Cogmind --------- Core Integrity 0/400 Matter 235/300 Energy 100/100 System Corruption 13% Temperature Cool (144) Movement Core (250) Ox4 Location -9/Materials Parts ------- > --- POWER (1) -------- (None) > --- PROPULSION (3) --- (None) > --- UTILITY (3) ------ Medium Storage Unit > --- WEAPON (2) ------- Heavy Mace Heavy Mace > --- INVENTORY (8) ---- Light Ion Engine Large Battery (300) Sensor Array Signal Interpreter Improved Terrain Scanner Light Assault Rifle Mini Grenade Launcher Datajack Peak State ------------ > --- POWER ------------ Improved Ion Engine > --- PROPULSION ------- Improved Flight Unit Improved Flight Unit Improved Flight Unit > --- UTILITY ---------- Medium Storage Unit Weight Redist. System Hardened Medium Armor Plating > --- WEAPON ----------- Advanced Beam Cannon Improved Light Cannon > --- INVENTORY -------- Sensor Array Signal Interpreter Improved Terrain Scanner Hardened Medium Armor Plating Improved Light Armor Plating Beam Rifle Mini Grenade Launcher Datajack [Rating: 23] Favorites ----------- Power Light Ion Engine Engine Light Ion Engine Propulsion Improved Flight Unit Leg Aluminum Leg Flight Unit Improved Flight Unit Utility Medium Storage Unit Device Weight Redist. System Storage Medium Storage Unit Processor Transport Network Coupler Protection Hardened Medium Armor Plating Weapon Shotgun Energy Gun EM Shotgun Energy Cannon EM Pulse Cannon Ballistic Gun Shotgun Ballistic Cannon Improved Light Cannon Launcher Mini Grenade Launcher Impact Weapon Heavy Mace Build | -11 -10 -9 ------- Run | Scr Mat Mat Slots Evolved 2 | . . 2 Power . | . . . Propulsion 1 | . . 1 Utility 1 | . . 1 Weapon . | . . . Parts Attached 57 | 6 22 29 Power 9 | 1 4 4 Engine 9 | 1 4 4 Core . | . . . Reactor . | . . . Propulsion 12 | 2 8 2 Treads . | . . . Leg 8 | 2 6 . Wheel . | . . . Hover . | . . . Flight 4 | . 2 2 Utility 14 | 1 3 10 Device 2 | . . 2 Storage 4 | 1 1 2 Processor 1 | . 1 . Hackware . | . . . Protection 7 | . 1 6 Artifact . | . . . Weapon 22 | 2 7 13 Energy Gun 7 | . 4 3 Energy Cannon 3 | . . 3 Ballistic Gun 7 | 2 3 2 Ballistic Cannon 1 | . . 1 Launcher 2 | . . 2 Special Weapon . | . . . Impact Weapon 2 | . . 2 Slashing Weapon . | . . . Piercing Weapon . | . . . Special Melee Weapon . | . . . Unidentified Prototypes 3 | . 1 2 Parts Lost 18 | . 1 17 Power 5 | . 1 4 Propulsion 4 | . . 4 Utility 5 | . . 5 Weapon 4 | . . 4 Highest Loss Streak 7 | . 1 7 Average Slot Usage (%) 90 | . 95 85 Engine 12 | . 13 10 Leg 12 | . 24 . Flight 12 | . 3 21 Storage 14 | . 14 14 Processor 2 | . 4 . Protection 10 | . 6 14 Energy Gun 7 | . 9 5 Ballistic Gun 12 | . 18 6 Launcher 2 | . . 4 Impact Weapon 1 | . . 3 Naked Turns . | . . . Heaviest Build 33 | 10 20 33 Greatest Support 24 | 20 20 24 Greatest Overweight (x) 6 | 1 3 6 Average Overweight (x) . | . . 1 Largest Inventory Capacity 8 | 6 8 8 Average Capacity 7 | 5 7 8 Most Carried 8 | 3 8 8 Average Carried 6 | 1 5 7 Final Capacity 8 | 6 8 8 Final Carried 8 | 2 8 8 Class Distribution -------------------- 63% | Mutant 34% | Scavenger-Mutant Dominant Class ---------------- Scavenger-Mutant | -10/Materials Mutant | -9/Materials Resources | -11 -10 -9 ----------- Run | Scr Mat Mat Matter Collected 1409 | 279 493 637 Remotely . | . . . Salvage Created 1705 | 171 595 939 Parts 124 | 16 54 54 Haulers Intercepted 4 | . 2 2 Recyclers Shooed 3 | . 2 1 Parts Field Recycled . | . . . Retrieved Matter . | . . . Parts Self-Destructed . | . . . Prevented . | . . . Kills | -11 -10 -9 ------- Run | Scr Mat Mat Combat Hostiles Destroyed 40 | . 15 25 Guns 31 | . 15 16 AOE 8 | . . 8 Classes Destroyed 11 | 3 6 2 Worker 2 | 2 . . Builder 2 | . 1 1 Tunneler 3 | 3 . . Hauler 4 | . 2 2 Recycler 4 | 1 . 3 Operator 2 | . 1 1 Watcher 4 | . 3 1 Swarmer 22 | . 9 13 Grunt 11 | . 6 5 Brawler 1 | . . 1 Sentry 6 | . . 6 Best Kill Streak 5 | 4 5 5 Combat Bots Only 4 | . 3 4 Max Kills in Single Turn 3 | 1 2 3 Gunslinging 1 | . 1 . Exploded 2 | . . 2 Melee . | . . . Uniques/NPCs Destroyed . | . . . Combat | -11 -10 -9 -------- Run | Scr Mat Mat Damage Taken 3100 | . 836 2264 Core 558 | . 152 406 Absorbed by Shields . | . . . Core Remaining (%) 69 | 100 39 . Volleys Fired 183 | 19 76 88 Largest 2 | 2 2 2 Hottest 119 | 40 90 119 Shots Fired 327 | 38 150 139 Gun 299 | 38 150 111 Cannon 11 | . . 11 Launcher 17 | . . 17 Special . | . . . Kinetic 205 | 38 111 56 Thermal 67 | . 14 53 Explosive 17 | . . 17 Electromagnetic 38 | . 25 13 Robot Hit Streak 11 | 7 11 8 Robot Miss Streak 10 | 3 10 5 Penetration Max . | . . . Secondary Targets 2 | . 2 . Max Gunslinging Chain 1 | . 1 . Shots Hit Robots 204 | 23 82 99 Core Hits 90 | 8 37 45 Critical Hits 3 | 1 2 . Critical Kills . | . . . Critical Parts Destroyed 3 | 1 2 . Melee Attacks 18 | . . 18 Impact 18 | . . 18 Slashing . | . . . Piercing . | . . . Sneak Attacks . | . . . Combat Hostiles . | . . . Follow-up Attacks 5 | . . 5 Damage Inflicted 3658 | 227 1004 2427 Guns 2105 | 227 952 926 Cannons 41 | . . 41 Explosions 1226 | . 52 1174 Melee 279 | . . 279 Ramming 7 | . . 7 Kinetic 1168 | 227 645 296 Thermal 814 | . 166 648 Explosive 1119 | . . 1119 Electromagnetic 271 | . 193 78 Impact 279 | . . 279 Slashing . | . . . Piercing . | . . . Highest Corruption 13 | . 3 13 Average Corruption 5 | . 1 10 Corruption Purged . | . . . Effects 50 | . 3 47 Message Errors 13 | . 3 10 Matter Fused 12 | . . 12 Heat Flow Errors 4 | . . 4 Energy Discharges 5 | . . 5 Parts Rejected 1 | . . 1 Data Loss (minor) 3 | . . 3 Data Loss (major) 2 | . . 2 Misfires 1 | . . 1 Alerts 1 | . . 1 Misdirections 2 | . . 2 Targeting Errors 5 | . . 5 Weapon Failures 1 | . . 1 Overload Shots . | . . . Overflow Damage 46 | . 5 41 Projectiles . | . . . Explosions 37 | . 5 32 Melee 9 | . . 9 Knockbacks . | . . . Impact . | . . . Kinetic . | . . . Secondary . | . . . Self-Inflicted Damage 560 | . 35 525 Shots 15 | . 1 14 Rammed 2 | . . 2 Targets Rammed 2 | . . 2 Kicked . | . . . Crushed . | . . . Highest Temperature 408 | . 180 408 Average Temperature 111 | . 47 136 Received Heat Transfer 681 | . 216 465 Effects 5 | . . 5 Shutdowns 1 | . . 1 Interference 2 | . . 2 Short Circuit 1 | . . 1 Damage (minor) 1 | . . 1 Siege Activations . | . . . Robots Corrupted . | . . . Combat Hostiles . | . . . Parts Fried 1 | . . 1 Impact Corruptions 1 | . . 1 Robots Melted . | . . . Combat Hostiles . | . . . Parts Melted 1 | . . 1 Heat Transferred 1815 | . 433 1382 Parts Sabotaged . | . . . Parts Stolen . | . . . Parts Stripped . | . . . Power Chain Reactions 2 | . 1 1 Missiles Intercepted . | . . . Alert | -11 -10 -9 ------- Run | Scr Mat Mat Peak Influence 357 | 30 357 305 Average Influence 104 | 9 98 117 Maximum Alert Level 1 | . 1 1 Low Security (%) 85 | 100 83 86 Level 1 14 | . 16 13 Level 2 . | . . . Level 3 . | . . . Level 4 . | . . . Level 5 . | . . . High Security . | . . . Max Security . | . . . Squads Dispatched 5 | . 3 2 Investigation 3 | . 2 1 Extermination . | . . . Reinforcement 2 | . 1 1 Assault . | . . . Garrison . | . . . Intercept . | . . . Construction Impeded 1 | . . 1 Haulers Reinforced . | . . . Stealth | -11 -10 -9 --------- Run | Scr Mat Mat Distress Signals 3 | . 2 1 Communications Jammed . | . . . Distress Signals . | . . . Times Spotted 67 | . 29 38 Peak Tracking Total 6 | . 6 4 Tactical Retreats 2 | . 1 1 Traps | -11 -10 -9 ------- Run | Scr Mat Mat Traps Triggered 7 | . 5 2 Indirectly . | . . . Trap Hack Attempts . | . . . Triggered . | . . . Disarmed . | . . . Reprogrammed . | . . . Reused . | . . . Traps Extracted . | . . . Installed . | . . . Triggered . | . . . Machines | -11 -10 -9 ---------- Run | Scr Mat Mat Machines Disabled . | . . . Max in Single Turn . | . . . Machines Sabotaged . | . . . Garrisons Compromised . | . . . Overloaded Fab Kills . | . . . Fab Network Shutdowns . | . . . Hacking | -11 -10 -9 --------- Run | Scr Mat Mat Machines Accessed 14 | . 7 7 Terminals 14 | . 7 7 Fabricators . | . . . Repair Stations . | . . . Recycling Units . | . . . Scanalyzers . | . . . Garrison Access . | . . . Total Hacks 58 | . 30 28 Successful 34 | . 16 18 Failed 24 | . 14 10 Catastrophic 1 | . 1 . Database Lockouts . | . . . Manual 47 | . 29 18 Terminals 58 | . 30 28 Fabricators . | . . . Repair Stations . | . . . Recycling Units . | . . . Scanalyzers . | . . . Garrison Access . | . . . Terminal Hacks 19 | . 9 10 Prototype ID Bank 2 | . . 2 Branch Access Points 2 | . 1 1 Emergency Access Points 1 | . . 1 Terminal Index 2 | . 1 1 Unreport Threat 3 | . 2 1 Locate Traps 1 | . . 1 Recall Investigation 1 | . . 1 Hauler Manifests 1 | . . 1 Zone Layout 6 | . 5 1 Fabricator Hacks . | . . . Repair Station Hacks . | . . . Recycling Unit Hacks . | . . . Scanalyzer . | . . . Garrison Access Hacks . | . . . Unauthorized Hacks 37 | . 16 21 Terminals 15 | . 7 8 Assimilate 2 | . . 2 Botnet 13 | . 7 6 Fabricators . | . . . Repair Stations . | . . . Recycling Units . | . . . Scanalyzers . | . . . Garrison Access . | . . . Data Cores Recovered 1 | . . 1 Used . | . . . Hacking Detections 13 | . 7 6 Full Trace Events 2 | . . 2 Feedback Events . | . . . Feedback Blocked . | . . . Robot Schematics Acquired . | . . . Robots Built . | . . . Matter . | . . . Time . | . . . Total Robot Build Rating . | . . . Part Schematics Acquired . | . . . Parts Built . | . . . Matter . | . . . Time . | . . . Total Part Build Rating . | . . . Parts Repaired . | . . . Time . | . . . Parts Recycled . | . . . Recycled Matter . | . . . Retrieved Matter . | . . . Retrieved Components . | . . . Parts Scanalyzed . | . . . Part Schematics Acquired . | . . . Parts Damaged . | . . . Bothacking | -11 -10 -9 ------------ Run | Scr Mat Mat Used RIF Installer . | . . . Robots Hacked . | . . . Non-combat . | . . . Combat . | . . . Robot Hacks Applied . | . . . Relay Couplers Released . | . . . Robots Rewired . | . . . Allies Hacked . | . . . Hacks Repelled . | . . . Allies | -11 -10 -9 -------- Run | Scr Mat Mat Total Allies . | . . . Largest Group . | . . . Highest-Rated Group . | . . . Highest-Rated Ally . | . . . Total Orders . | . . . Ally Attacks . | . . . Total Damage . | . . . Kills . | . . . Allies Corrupted . | . . . Allies Melted . | . . . Intel | -11 -10 -9 ------- Run | Scr Mat Mat Robot Analysis Total . | . . . Derelict Logs Recovered . | . . . Drone Launches . | . . . Drone Recoveries . | . . . Exploration | -11 -10 -9 ------------- Run | Scr Mat Mat Turns Passed 3458 | 136 1636 1686 Spaces Moved 1909 | 62 1089 758 Core 22 | 9 . 13 Treads . | . . . Legs 968 | 53 915 . Wheels . | . . . Hover . | . . . Flight 919 | . 174 745 Fastest Speed 29 | 50 102 29 Average Speed 125 | 111 117 137 Slowest Speed 350 | 120 255 350 Overloaded Moves . | . . . Propulsion Burnouts . | . . . Robots Hopped . | . . . Cave-ins Triggered . | . . . Exploration Rate (%) 54 | 4 96 63 Regions Visited 2 Branch Regions . Pre-discovered Areas . | . . . Known Exits Taken . | . . . Unknown Exits Taken 2 | 1 1 . Scrap Searched . | . . . Spaces Dug . | . . . Terrain Destroyed 124 | . 3 121 Melee . | . . . Projectile . | . . . AOE 124 | . 3 121 Actions | -11 -10 -9 --------- Run | Scr Mat Mat Total 2631 | 94 1303 1234 Wait 386 | . 73 313 Move 1907 | 61 1088 758 Hop . | . . . Pick Up 52 | 8 25 19 Fast Attach 7 | . 3 4 Attach 23 | 6 1 16 Detach 1 | . . 1 Swap 27 | . 18 9 Drop 30 | . 19 11 Fire 183 | 19 76 88 Melee 13 | . . 13 Ram 2 | . . 2 Kick . | . . . Crush . | . . . Escape Stasis . | . . . Rewire . | . . . Trap . | . . . Miscellaneous . | . . . Route ------- -11/Scrapyard -10/Materials (discovered 3 exits: *Mat x2 / *Min) -9/Materials (discovered 2 exits: [*Mat] / *Min) History --------- Turn | Location | Event 4 | -11/Scrapyard | Discovered new exit (range 16) 137 | -11/Scrapyard | Entered Materials 234 | -10/Materials | Identified exit to Mines 777 | -10/Materials | Discovered new exit (range 8) 878 | -10/Materials | Build established: Scavenger-Mutant 1508 | -10/Materials | Core integrity fell below 50% 1668 | -10/Materials | Discovered new exit (range 7) 1773 | -10/Materials | Entered another Materials area 1773 | -9/Materials | Evolved 2 slots: Propulsion x1, Utility x1 1902 | -9/Materials | Lost 3 parts (1p1u1w) 1953 | -9/Materials | Lost 3 parts (1n1u1w) 2122 | -9/Materials | Discovered new exit (range 10) 2137 | -9/Materials | Identified exit to Mines 2166 | -9/Materials | Build established: Mutant 2380 | -9/Materials | Discovered new exit (range 16) 2644 | -9/Materials | System corruption reached 10% 2647 | -9/Materials | Core integrity fell below 50% 2674 | -9/Materials | Lost 7 parts (1p2n2u2w) 3451 | -9/Materials | Core integrity fell below 20% 3459 | -9/Materials | Destroyed by Y-45 Defender with Beam Rifle Last Messages --------------- 03382_ Imp. Flight Unit destroyed. 03392_ Hvy. Mace follow-up attack on Y-45 Defender. 03401_ System corrupted: Matter fused (-7). 03406_ Imp. Light Armor Plating destroyed. 03407_ R-06 Scavenger collects Hrd. Medium Armor Plating. 03409_ Destroyed Heat Sink. 03409_ Y-45 Defender system corrupted by crushing effect. 03410_ Y-45 Defender system terminally corrupted. 03410_ Beam Rifle fried. 03410_ K-01 Serf collects debris. 03412_ Acquired 60 matter. 03415_ K-01 Serf collects debris. 03416_ System corrupted: IFF burst signal emitted. 03421_ K-01 Serf collects debris. 03434_ UAAAKDFO5C#HVNLB7PHWH 03447_ Lgt. Ion Engine destroyed. 03449_ Hvy. Mace follow-up attack on Y-45 Defender. 03453_ Electrolysis Chamber disabled. 03454_ System corrupted: Heat flow error (+255). 03456_ Hvy. Mace follow-up attack on Y-45 Defender. Map ----- +----------------------------------------------------+ | ???????????????????# # ""# """ ## # | | ???????????????????# # # ## # | | ???????????????????#####+##### # ## # | | ??????????????????????# #######+####/#########/# | | ??????????????????????# | | ??????????????????????# ######################## | | ??????????????????????# #??????????????????????? | | ??????????????????????# #??????????????????????? | | ??????????????????????# ########???????????????? | | ??????????????????????# # #???????????????? | | ??????????????????????# # "T" #???????????????? | | ??????????????????????# # #???????????????? | | ??????????????????????# # ! #???????????????? | | ??????????????????????# + #???????????????? | | ??????????????????????# # ! #???????????????? | | ??????????????????????# ##########?????????????? | | ??????????????????????# #### ###+#?????????? | | ??????????????????????# ????????? | | ??????????????????????+ ????????? | | ??????????????????????# ????????? | | ??????????????????????##t##### #####?????????? | | ???????????????????????#/#######+###?????????????? | | ???????????????????????# """ """ ""??????????????? | | ???????????????????????# """ """ ""??????????????? | | ???????????????????????# "" """ """ #???????????? | | ???????????????????????#Y@ #???????????? | | ???????????????????????# #???????????? | | ???????????????????????# = #???????????? | | ???????????????????????###############???????????? | | | | | | | | | | | | | | | | | | | | | | | | | | | | | | | | | | | | | | | | | | | +----------------------------------------------------+ Best States ------------- Heat Dissipation 28 Energy Generation 12 Energy Capacity 565 Matter Stores 300 Matter Capacity 300 Sight Range 16 Terrain Scan Density 10 Additional Mass Support 6 Armor Coverage 375 Evasion (%) 64 Item Schematics ----------------- None Robot Schematics ------------------ None Fabricated ------------ Nothing Alien Tech Used ----------------- None Achievements -------------- None Challenges ------------ None Game ------ Seed TachyonTiamatStreamer Manual? 0 Play Time 00:48:23 Cumulative 40.0 hours Start 2019.11.27 @ 14:02:04 End 2019.11.27 @ 15:10:08 Sessions 1 Manual Loads 0 Difficulty Rogue Special Mode None Game No. 55 Rogue 55 Adventurer 0 Explorer 0 Win Type - Total 0 Types 0/0/0/0/0/0/0 Lore% 21 Gallery% 20 Achievement% 21 Wizard Run 0 Options --------- ASCII 0 Keyboard 0 Movement Arrows Keybinds 0 Fullscreen 1 Font 18/SmallcapsGlow Map View 76x50 Tactical HUD 1 Map Filters NONE Filters LOW_CONTRAST(13,24,33)|BRIGHTNESS(120)|SATURATION(80) Steam 1 RUN: 419857e7-b208-4aa2-b357-3e6abeb67dd1